fUSD/lending_fUSD_20250124
["ID","MTS","AMOUNT","RATE_DAILY","PERIOD"]
[350219199,1737701436690,-213.1523031,0.00019162,2]
[350219201,1737701436699,-500.0,0.00019162,2]
[350219203,1737701436708,-500.0,0.00019162,2]
[350219205,1737701436717,-955.29,0.00019162,2]
[350219207,1737701436726,-500.0,0.00019162,2]
[350219209,1737701436735,-500.0,0.00019162,2]
[350219211,1737701436744,-924.57,0.00019162,2]
[350219213,1737701436753,-500.0,0.00019163,2]
[350219215,1737701436762,-500.0,0.00019163,2]
[350219217,1737701436772,-500.0,0.00019163,2]
[350219219,1737701436780,-413.10456001,0.00019163,2]
[350219221,1737701436789,-500.0,0.00019163,2]
[350219222,1737701436800,-500.0,0.00019163,2]
[350219224,1737701436809,-502.3634067,0.00019163,2]
[350219226,1737701436819,-500.0,0.00019163,2]
[350219228,1737701436828,-500.0,0.00019163,2]
[350219230,1737701436837,-500.0,0.00019163,2]
[350219232,1737701436847,-214.4459854,0.00019163,2]
[350219234,1737701436856,-500.0,0.00019163,2]
[350219236,1737701436866,-218.91088799,0.00019163,2]
[350219238,1737701436875,-607.68931433,0.00019163,2]
[350219240,1737701436884,-500.0,0.00019163,2]
[350219242,1737701436894,-1794.83,0.00019163,2]
[350219244,1737701436903,-500.0,0.00019163,2]
[350219246,1737701436912,-500.0,0.00019163,2]
[350219248,1737701436922,-500.0,0.00019163,2]
[350219250,1737701436931,-373.6150244,0.00019163,2]
[350219253,1737701436940,-500.0,0.00019163,2]
[350219255,1737701436949,-500.0,0.00019163,2]
[350219256,1737701436959,-500.0,0.00019163,2]
[350219258,1737701436968,-504.98520715,0.00019163,2]
[350219260,1737701436977,-500.0,0.00019163,2]
[350219262,1737701436987,-500.0,0.00019163,2]
[350219264,1737701436996,-502.47989349,0.00019163,2]
[350219266,1737701437005,-500.0,0.00019163,2]
[350219268,1737701437014,-500.0,0.00019163,2]
[350219270,1737701437023,-500.0,0.00019163,2]
[350219272,1737701437032,-500.0,0.00019163,2]
[350219274,1737701437042,-500.0,0.00019163,2]
[350219276,1737701437053,-500.0,0.00019163,2]
[350219278,1737701437062,-500.0,0.00019163,2]
[350219280,1737701437071,-500.0,0.00019163,2]
[350219282,1737701437080,-500.0,0.00019163,2]
[350219284,1737701437089,-500.0,0.00019163,2]
[350219286,1737701437098,-514.43118739,0.00019163,2]
[350219288,1737701437107,-500.0,0.00019163,2]
[350219290,1737701437117,-500.0,0.00019163,2]
[350219291,1737701437126,-500.0,0.00019163,2]
[350219292,1737701437136,-500.0,0.00019163,2]
[350219293,1737701437145,-500.0,0.00019163,2]
[350219294,1737701437155,-500.0,0.00019163,2]
[350219295,1737701437164,-500.0,0.00019163,2]
[350219296,1737701437174,-500.0,0.00019163,2]
[350219297,1737701437183,-500.0,0.00019163,2]
[350219298,1737701437193,-521.92205717,0.00019163,2]
[350219299,1737701437202,-500.0,0.00019163,2]
[350219300,1737701437212,-500.0,0.00019163,2]
[350219301,1737701437222,-500.0,0.00019163,2]
[350219303,1737701437232,-506.27291745,0.00019163,2]
[350219305,1737701437241,-500.0,0.00019163,2]
[350219307,1737701437250,-158.490083,0.00019163,2]
[350219309,1737701437260,-500.0,0.00019163,2]
[350219311,1737701437269,-500.0,0.00019163,2]
[350219313,1737701437278,-500.0,0.00019163,2]
[350219315,1737701437287,-500.0,0.00019163,2]
[350219317,1737701437297,-500.0,0.00019163,2]
[350219319,1737701437307,-500.0,0.00019163,2]
[350219321,1737701437316,-500.0,0.00019163,2]
[350219323,1737701437326,-500.0,0.00019163,2]
[350219325,1737701437335,-500.0,0.00019163,2]
[350219327,1737701437344,-500.0,0.00019163,2]
[350219329,1737701437354,-500.0,0.00019163,2]
[350219331,1737701437363,-500.0,0.00019163,7]
[350219333,1737701437373,-500.0,0.00019163,2]
[350219335,1737701437383,-500.0,0.00019163,2]
[350219337,1737701437392,-500.0,0.00019163,2]
[350219339,1737701437401,-509.80183209,0.00019163,2]
[350219341,1737701437411,-269.83,0.00019163,2]
[350219343,1737701437420,-500.0,0.00019163,2]
[350219344,1737701437429,-500.0,0.00019163,2]
[350219346,1737701437440,-500.0,0.00019163,2]
[350219348,1737701437449,-500.0,0.00019163,2]
[350219350,1737701437458,-500.0,0.00019163,2]
[350219352,1737701437469,-500.0,0.00019163,2]
[350219354,1737701437480,-500.0,0.00019163,2]
[350219356,1737701437490,-504.22,0.00019163,2]
[350219358,1737701437499,-500.0,0.00019163,2]
[350219360,1737701437509,-500.0,0.00019163,2]
[350219362,1737701437519,-500.0,0.00019163,2]
[350219377,1737701437650,-500.0,0.00019163,2]
[350219379,1737701437659,-500.0,0.00019163,2]
[350219381,1737701437669,-500.0,0.00019163,2]
[350219383,1737701437679,-500.0,0.00019163,2]
[350219385,1737701437688,-500.0,0.00019163,2]
[350219387,1737701437697,-500.0,0.00019163,2]
[350219389,1737701437707,-500.0,0.00019163,2]
[350219391,1737701437715,-155.927474,0.00019163,2]
[350219393,1737701437724,-500.0,0.00019163,2]
[350219395,1737701437733,-500.0,0.00019163,2]
[350219397,1737701437743,-500.0,0.00019163,2]
[350219399,1737701437752,-151.0,0.00019163,2]
[350219401,1737701437761,-152.664857,0.00019163,2]
[350219403,1737701437771,-500.0,0.00019163,2]
[350219405,1737701437780,-500.0,0.00019163,2]
[350219407,1737701437789,-500.0,0.00019163,2]
[350219409,1737701437801,-500.0,0.00019163,2]
[350219411,1737701437810,-302.77859753,0.00019163,2]
[350219413,1737701437819,-500.0,0.00019163,2]
[350219415,1737701437828,-500.0,0.00019163,2]
[350219417,1737701437837,-500.0,0.00019163,2]
[350219419,1737701437846,-151.0,0.00019163,2]
[350219421,1737701437855,-153.639548,0.00019163,2]
[350219423,1737701437865,-500.0,0.00019163,2]
[350219426,1737701437884,-500.0,0.00019163,2]
[350219428,1737701437894,-500.0,0.00019163,2]
[350219430,1737701437904,-500.0,0.00019163,2]
[350219432,1737701437914,-500.0,0.00019163,2]
[350219434,1737701437923,-500.0,0.00019163,2]
[350219436,1737701437933,-525.8451299,0.00019163,2]
[350219438,1737701437942,-500.0,0.00019163,2]
[350219440,1737701437952,-500.0,0.00019163,2]
[350219442,1737701437962,-455.872852,0.00019163,2]
[350219444,1737701437972,-500.0,0.00019163,2]
[350219446,1737701437982,-500.0,0.00019163,2]
[350219448,1737701437991,-455.872852,0.00019163,2]
[350219450,1737701438001,-500.0,0.00019163,2]
[350219452,1737701438011,-247.287554,0.00019163,2]
[350219454,1737701438021,-500.0,0.00019163,2]
[350219456,1737701438031,-513.40232902,0.00019163,2]
[350219459,1737701438042,-500.0,0.00019163,2]
[350219461,1737701438054,-163.16894915,0.00019163,2]
[350219463,1737701438064,-500.0,0.00019163,2]
[350219465,1737701438073,-500.0,0.00019163,2]
[350219467,1737701438083,-500.0,0.00019163,2]
[350219469,1737701438093,-500.0,0.00019163,2]
[350219471,1737701438103,-500.0,0.00019163,2]
[350219473,1737701438113,-516.683192,0.00019163,2]
[350219475,1737701438123,-516.683192,0.00019163,2]
[350219477,1737701438133,-500.0,0.00019163,2]
[350219479,1737701438143,-500.0,0.00019163,2]
[350219481,1737701438153,-500.0,0.00019163,2]
[350219483,1737701438162,-500.0,0.00019163,2]
[350219485,1737701438171,-151.0,0.00019163,2]
[350219487,1737701438181,-156.469514,0.00019163,2]
[350219489,1737701438191,-500.0,0.00019163,2]
[350219491,1737701438200,-500.0,0.00019163,2]
[350219493,1737701438210,-500.0,0.00019163,2]
[350219495,1737701438221,-500.0,0.00019163,2]
[350219497,1737701438230,-500.0,0.00019163,2]
[350219499,1737701438240,-500.0,0.00019163,2]
[350219501,1737701438250,-500.0,0.00019163,2]
[350219503,1737701438259,-509.98805485,0.00019163,2]
[350219505,1737701438268,-500.0,0.00019163,2]
[350219507,1737701438277,-500.0,0.00019163,2]
[350219509,1737701438287,-500.0,0.00019163,2]
[350219511,1737701438296,-500.0,0.00019163,2]
[350219513,1737701438307,-500.0,0.00019163,2]
[350219516,1737701438317,-500.0,0.00019163,2]
[350219518,1737701438327,-500.0,0.00019163,2]
[350219519,1737701438336,-500.0,0.00019163,2]
[350219521,1737701438346,-500.0,0.00019163,2]
[350219524,1737701438355,-152.400243,0.00019163,2]
[350219525,1737701438364,-500.0,0.00019163,2]
[350219528,1737701438374,-500.0,0.00019163,2]
[350219529,1737701438383,-500.0,0.00019163,2]
[350219532,1737701438392,-500.0,0.00019163,2]
[350219534,1737701438402,-500.0,0.00019163,2]
[350219536,1737701438411,-500.0,0.00019163,2]
[350219537,1737701438420,-151.0,0.00019163,2]
[350219540,1737701438430,-151.0,0.00019163,2]
[350219541,1737701438439,-500.0,0.00019163,2]
[350219544,1737701438449,-243.364796,0.00019163,2]
[350219545,1737701438459,-500.0,0.00019163,2]
[350219548,1737701438474,-500.0,0.00019163,2]
[350219550,1737701438484,-151.0,0.00019163,2]
[350219552,1737701438493,-154.15251,0.00019163,2]
[350219554,1737701438503,-500.0,0.00019163,2]
[350219556,1737701438514,-500.0,0.00019163,2]
[350219558,1737701438523,-378.60413182,0.00019163,2]
[350219560,1737701438533,-500.0,0.00019163,2]
[350219562,1737701438544,-500.0,0.00019163,2]
[350219564,1737701438556,-500.0,0.00019163,2]
[350219566,1737701438565,-223.75000461,0.00019163,2]
[350219568,1737701438574,-500.0,0.00019163,2]
[350219570,1737701438583,-249.53029729,0.00019163,2]
[350219572,1737701438593,-500.0,0.00019163,2]
[350219574,1737701438602,-500.0,0.00019163,2]
[350219576,1737701438611,-500.0,0.00019163,2]
[350219578,1737701438620,-500.0,0.00019163,2]
[350219580,1737701438629,-500.0,0.00019163,2]
[350219582,1737701438638,-500.0,0.00019163,2]
[350219584,1737701438647,-241.95654461,0.00019163,2]
[350219586,1737701438657,-191.572905,0.00019163,2]
[350219588,1737701438666,-191.572905,0.00019163,2]
[350219590,1737701438677,-191.572905,0.00019163,2]
[350219592,1737701438686,-191.572905,0.00019163,2]
[350219594,1737701438695,-500.0,0.00019163,2]
[350219596,1737701438704,-500.0,0.00019163,2]
[350219598,1737701438713,-500.0,0.00019163,2]
[350219600,1737701438723,-508.72587018,0.00019163,2]
[350219602,1737701438732,-502.94757462,0.00019163,2]
[350219604,1737701438741,-500.0,0.00019163,2]
[350219606,1737701438750,-500.0,0.00019163,2]
[350219608,1737701438759,-500.0,0.00019163,2]
[350219610,1737701438769,-176.887998,0.00019163,2]
[350219612,1737701438778,-176.887998,0.00019163,2]
[350219614,1737701438787,-455.98841719,0.00019163,2]
[350219616,1737701438796,-151.0,0.00019163,2]
[350219618,1737701438807,-151.0,0.00019163,2]
[350219620,1737701438815,-176.887998,0.00019163,2]
[350219622,1737701438824,-176.887998,0.00019163,2]
[350219624,1737701438834,-500.0,0.00019163,2]
[350219626,1737701438843,-500.0,0.00019163,2]
[350219628,1737701438852,-500.0,0.00019163,2]
[350219630,1737701438862,-500.0,0.00019163,2]
[350219632,1737701438872,-501.82316489,0.00019163,2]
[350219634,1737701438881,-500.0,0.00019163,2]
[350219636,1737701438890,-151.0,0.00019163,2]
[350219638,1737701438900,-500.0,0.00019163,2]
[350219640,1737701438909,-184.809114,0.00019163,2]
[350219643,1737701438919,-151.0,0.00019163,2]
[350219645,1737701438928,-500.0,0.00019163,2]
[350219647,1737701438937,-151.855036,0.00019163,2]
[350219649,1737701438946,-500.0,0.00019163,2]
[350219650,1737701438956,-503.65796443,0.00019163,2]
[350219652,1737701438965,-507.04989248,0.00019163,2]
[350219655,1737701438974,-500.0,0.00019163,2]
[350219656,1737701438983,-500.0,0.00019163,2]
[350219658,1737701438992,-238.400718,0.00019163,2]
[350219661,1737701439002,-238.400718,0.00019163,2]
[350219662,1737701439011,-151.0,0.00019163,2]
[350219664,1737701439021,-151.0,0.00019163,2]
[350219667,1737701439030,-238.400718,0.00019163,2]
[350219669,1737701439039,-238.400718,0.00019163,2]
[350219670,1737701439049,-500.0,0.00019163,2]
[350219672,1737701439058,-151.0,0.00019163,2]
[350219675,1737701439067,-151.0,0.00019163,2]
[350219677,1737701439077,-500.0,0.00019163,2]
[350219679,1737701439086,-151.0,0.00019163,2]
[350219680,1737701439098,-151.0,0.00019163,2]
[350219682,1737701439107,-500.0,0.00019163,2]
[350219684,1737701439116,-500.0,0.00019163,2]
[350219686,1737701439125,-500.0,0.00019163,2]
[350219688,1737701439134,-200.0,0.00019163,2]
[350219690,1737701439143,-151.0,0.00019163,2]
[350219692,1737701439152,-156.443599,0.00019163,2]
[350219695,1737701439162,-500.0,0.00019163,2]
[350219696,1737701439171,-500.0,0.00019163,2]
[350219698,1737701439181,-500.0,0.00019163,2]
[350219699,1737701439190,-508.21446316,0.00019163,2]
[350219700,1737701439199,-500.0,0.00019163,2]
[350219701,1737701439208,-503.78444225,0.00019163,2]
[350219702,1737701439218,-500.0,0.00019163,2]
[350219703,1737701439227,-500.0,0.00019163,2]
[350219704,1737701439236,-507.02554084,0.00019163,2]
[350219705,1737701439245,-500.0,0.00019163,2]
[350219706,1737701439255,-295.549324,0.00019163,2]
[350219708,1737701439264,-500.0,0.00019163,2]
[350219710,1737701439273,-295.549324,0.00019163,2]
[350219712,1737701439283,-151.0,0.00019163,2]
[350219714,1737701439292,-500.0,0.00019163,2]
[350219716,1737701439301,-151.0,0.00019163,2]
[350219718,1737701439310,-295.549324,0.00019163,2]
[350219720,1737701439321,-511.96113465,0.00019163,2]
[350219722,1737701439332,-295.549324,0.00019163,2]
[350219724,1737701439342,-500.0,0.00019163,2]
[350219726,1737701439351,-1000.0,0.00019163,2]
[350219728,1737701439360,-500.0,0.00019163,2]
[350219730,1737701439371,-500.0,0.00019163,2]
[350219732,1737701439381,-500.0,0.00019163,2]
[350219734,1737701439390,-500.0,0.00019163,2]
[350219736,1737701439400,-508.27564391,0.00019163,2]
[350219738,1737701439410,-500.0,0.00019163,2]
[350219740,1737701439419,-500.0,0.00019163,2]
[350219742,1737701439429,-719.78,0.00019163,2]
[350219744,1737701439438,-624.22804772,0.00019163,2]
[350219746,1737701439447,-500.0,0.00019163,2]
[350219748,1737701439456,-151.0,0.00019163,2]
[350219750,1737701439466,-151.0,0.00019163,2]
[350219752,1737701439478,-500.0,0.00019163,2]
[350219754,1737701439487,-866.79,0.00019163,2]
[350219756,1737701439497,-223.88175,0.00019163,2]
[350219758,1737701439506,-223.88175,0.00019163,2]
[350219760,1737701439518,-223.88175,0.00019163,2]
[350219762,1737701439528,-223.88175,0.00019163,2]
[350219764,1737701439538,-151.0,0.00019163,2]
[350219766,1737701439552,-151.0,0.00019163,2]
[350219768,1737701439564,-151.0,0.00019163,2]
[350219770,1737701439574,-151.0,0.00019163,2]
[350219772,1737701439584,-151.0,0.00019163,2]
[350219774,1737701439594,-151.0,0.00019163,2]
[350219776,1737701439605,-162.040079,0.00019163,2]
[350219778,1737701439614,-151.0,0.00019163,2]
[350219780,1737701439624,-151.0,0.00019163,2]
[350219782,1737701439633,-151.0,0.00019163,2]
[350219784,1737701439642,-151.0,0.00019163,2]
[350219786,1737701439651,-164.759677,0.00019163,2]
[350219788,1737701439660,-152.435262,0.00019163,2]
[350219790,1737701439670,-158.975512,0.00019163,2]
[350219792,1737701439679,-151.820002,0.00019163,2]
[350219794,1737701439689,-462.065884,0.00019163,2]
[350219796,1737701439698,-462.065884,0.00019163,2]
[350219798,1737701439707,-462.065884,0.00019163,2]
[350219800,1737701439716,-462.065884,0.00019163,2]
[350219802,1737701439726,-151.0,0.00019163,2]
[350219804,1737701439735,-154.519401,0.00019163,2]
[350219806,1737701439746,-152.568235,0.00019163,2]
[350219808,1737701439755,-218.102762,0.00019163,2]
[350219810,1737701439766,-151.0,0.00019163,2]
[350219812,1737701439775,-151.0,0.00019163,2]
[350219815,1737701439785,-151.0,0.00019163,2]
[350219818,1737701439794,-151.0,0.00019163,2]
[350219820,1737701439805,-151.0,0.00019163,2]
[350219822,1737701439815,-151.0,0.00019163,2]
[350219824,1737701439824,-151.0,0.00019163,2]
[350219826,1737701439834,-151.0,0.00019163,2]
[350219828,1737701439843,-666.0,0.00019163,2]
[350219830,1737701439852,-55827.57145804,0.00019164,2]
[350219869,1737701440086,-311.696913,0.00019164,2]
[350219872,1737701440236,-411.53959575,0.00019164,2]
[350219924,1737701440735,-443.63457538,0.00019162,2]
[350219934,1737701440831,-56.36542462,0.00019162,2]
[350219936,1737701440841,-151.744972,0.00019163,2]
[350219938,1737701440850,-316.67375998,0.00019163,2]
[350219941,1737701440862,-59.77677802,0.00019163,2]
[350219943,1737701440872,-225.31518571,0.00019163,2]
[350219945,1737701440883,-151.13535229,0.00019163,2]
[350219947,1737701440893,-527.71463271,0.00019164,2]
[350219949,1737701440905,-140550.20368484,0.00019164,2]
[350219951,1737701440915,-166156.47064112,0.00019164,15]
[350220137,1737701442744,-500.0,0.00019161,2]
[350220140,1737701442753,-1.417,0.00019161,2]
[350220164,1737701443041,-534.40286895,0.00019161,2]
[350220403,1737701445889,-889.67013105,0.00019161,2]
[350220404,1737701445900,-500.0,0.00019161,2]
[350220405,1737701445910,-500.0,0.00019162,2]
[350220406,1737701445919,-256.14984495,0.00019162,2]
[350220407,1737701446030,-243.85015505,0.00019162,2]
[350220408,1737701446039,-500.0,0.00019162,2]
[350220409,1737701446048,-500.0,0.00019162,2]
[350220410,1737701446058,-500.0,0.00019162,2]
[350220411,1737701446069,-562.22692278,0.00019162,2]
[350220412,1737701446280,-105.99878222,0.00019162,2]
[350220413,1737701446291,-500.0,0.00019162,2]
[350220414,1737701446301,-376.450538,0.00019163,2]
[350220415,1737701446313,-65.31677768,0.00019163,2]
[350220416,1737701446325,-311.13376032,0.00019163,2]
[350220417,1737701446334,-1721.98446168,0.00019164,15]
[350220418,1737701446345,-1040.8000004,0.00019164,15]
[350220432,1737702571354,336.17125893,0.00022005,120]
[350220442,1737702632082,-550.0,0.00015,2]
[350220443,1737702632091,-314.00530937,0.00016129,2]
[350220444,1737702632110,-103.10469063,0.00016129,2]
[350220445,1737702632119,-299.96600584,0.00017883,2]
[350220446,1737702632129,-299.96600584,0.00017891,2]
[350220447,1737702632138,-261.76327769,0.00017983,2]
[350220448,1737702632149,-624.9674635,0.00017983,2]
[350220449,1737702632228,-113.26925881,0.00017983,2]
[350220450,1737702632238,-169.66,0.00017983,2]
[350220451,1737702632247,-151.77,0.00017991,2]
[350220452,1737702632256,-250.0,0.0001806,2]
[350220453,1737702632265,-332.63,0.00018157,2]
[350220454,1737702632275,-193.75,0.00018242,2]
[350220455,1737702632284,-157.82509568,0.00018242,2]
[350220456,1737702632294,-1307.746,0.00018242,2]
[350220457,1737702632303,-5786.52029824,0.0001826,2]
[350220495,1737702637854,-24213.47970176,0.0001826,2]
[350220496,1737702637864,-7760.77536533,0.0001826,2]
[350220497,1737702637873,-417.11,0.00018393,2]
[350220498,1737702637882,-776.99,0.00018541,2]
[350220500,1737702637893,-150.0,0.000188,2]
[350220502,1737702637902,-1469.0,0.000188,2]
[350220504,1737702637911,-814.84943093,0.000188,2]
[350220505,1737702637920,-1000.0,0.00018899,2]
[350220506,1737702637931,-5000.0,0.000189,2]
[350220507,1737702637942,-151.86761816,0.000189,2]
[350220508,1737702637951,-207.63605267,0.000189,2]
[350220509,1737702637960,-500.0,0.00018973,2]
[350220510,1737702637970,-500.0,0.00018986,2]
[350220511,1737702637979,-152.06,0.0001899,2]
[350220512,1737702637988,-152.06,0.0001899,2]
[350220513,1737702637997,-152.06,0.0001899,2]
[350220514,1737702638007,-152.06,0.0001899,2]
[350220515,1737702638016,-152.06,0.0001899,2]
[350220516,1737702638026,-500.0,0.00018998,2]
[350220517,1737702638035,-500.0,0.00018998,2]
[350220518,1737702638045,-1366.09,0.00018998,2]
[350220519,1737702638054,-500.0,0.00018998,2]
[350220520,1737702638064,-500.0,0.00018998,2]
[350220521,1737702638073,-500.0,0.00018998,2]
[350220522,1737702638083,-500.0,0.00018998,2]
[350220523,1737702638093,-500.0,0.00018999,2]
[350220524,1737702638102,-182.814643,0.00018999,2]
[350220525,1737702638134,-317.185357,0.00018999,2]
[350220526,1737702638144,-500.0,0.00018999,2]
[350220527,1737702638154,-500.0,0.00018999,2]
[350220528,1737702638163,-500.0,0.00018999,2]
[350220529,1737702638173,-500.0,0.00018999,2]
[350220530,1737702638182,-500.0,0.00018999,2]
[350220531,1737702638191,-500.0,0.00018999,2]
[350220532,1737702638200,-500.0,0.00018999,2]
[350220533,1737702638210,-500.0,0.00018999,2]
[350220534,1737702638220,-500.0,0.00018999,2]
[350220535,1737702638229,-500.0,0.00018999,2]
[350220536,1737702638240,-500.0,0.00018999,2]
[350220537,1737702638251,-506.39769891,0.00018999,2]
[350220538,1737702638260,-517.09367275,0.00018999,2]
[350220539,1737702638270,-500.0,0.00018999,2]
[350220540,1737702638281,-500.0,0.00018999,2]
[350220541,1737702638290,-500.0,0.00018999,2]
[350220542,1737702638300,-500.0,0.00018999,2]
[350220543,1737702638309,-500.0,0.00018999,2]
[350220544,1737702638318,-500.0,0.00018999,2]
[350220545,1737702638329,-500.0,0.00018999,2]
[350220546,1737702638338,-500.0,0.00018999,2]
[350220547,1737702638347,-174.01836395,0.00018999,2]
[350220548,1737702638356,-500.0,0.00018999,2]
[350220549,1737702638366,-500.0,0.00018999,2]
[350220550,1737702638376,-500.0,0.00018999,2]
[350220551,1737702638385,-500.0,0.00018999,2]
[350220552,1737702638394,-503.35675173,0.00018999,2]
[350220553,1737702638403,-507.87231666,0.00018999,2]
[350220554,1737702638412,-500.0,0.00018999,2]
[350220555,1737702638421,-500.0,0.00018999,2]
[350220556,1737702638430,-500.0,0.00018999,2]
[350220557,1737702638439,-503.85145985,0.00018999,2]
[350220558,1737702638447,-511.87133039,0.00018999,2]
[350220559,1737702638456,-500.0,0.00018999,2]
[350220560,1737702638467,-500.0,0.00018999,2]
[350220561,1737702638476,-500.0,0.00018999,2]
[350220562,1737702638485,-500.0,0.00018999,2]
[350220563,1737702638495,-513.74144362,0.00018999,2]
[350220564,1737702638505,-500.0,0.00018999,2]
[350220565,1737702638514,-508.68190567,0.00018999,2]
[350220566,1737702638523,-500.0,0.00018999,2]
[350220567,1737702638533,-500.0,0.00018999,2]
[350220568,1737702638542,-500.0,0.00018999,2]
[350220569,1737702638552,-500.0,0.00018999,2]
[350220570,1737702638563,-500.0,0.00018999,2]
[350220571,1737702638573,-500.0,0.00018999,2]
[350220572,1737702638582,-200.0,0.00018999,2]
[350220573,1737702638591,-500.0,0.00018999,2]
[350220574,1737702638602,-500.0,0.00018999,2]
[350220575,1737702638612,-500.0,0.00018999,2]
[350220576,1737702638622,-500.0,0.00018999,2]
[350220577,1737702638631,-500.0,0.00018999,2]
[350220578,1737702638640,-500.0,0.00018999,2]
[350220579,1737702638649,-500.0,0.00018999,2]
[350220580,1737702638658,-500.0,0.00018999,2]
[350220581,1737702638668,-500.0,0.00018999,2]
[350220582,1737702638677,-276.94467946,0.00018999,2]
[350220583,1737702638696,-223.05532054,0.00018999,2]
[350220584,1737702638705,-500.0,0.00018999,2]
[350220585,1737702638714,-500.0,0.00018999,2]
[350220586,1737702638723,-500.0,0.00018999,2]
[350220587,1737702638734,-500.0,0.00018999,2]
[350220588,1737702638747,-500.0,0.00018999,2]
[350220589,1737702638756,-500.0,0.00018999,2]
[350220590,1737702638765,-500.0,0.00018999,2]
[350220591,1737702638776,-500.0,0.00018999,2]
[350220592,1737702638785,-500.0,0.00018999,2]
[350220593,1737702638796,-500.0,0.00018999,2]
[350220594,1737702638805,-500.0,0.00018999,2]
[350220595,1737702638815,-500.0,0.00018999,2]
[350220596,1737702638824,-500.0,0.00018999,2]
[350220597,1737702638833,-500.0,0.00018999,2]
[350220598,1737702638845,-500.0,0.00018999,2]
[350220599,1737702638861,-500.0,0.00018999,2]
[350220600,1737702638870,-500.0,0.00018999,2]
[350220601,1737702638879,-186.27013513,0.00018999,2]
[350220602,1737702638889,-500.0,0.00018999,2]
[350220603,1737702638898,-500.0,0.00018999,2]
[350220604,1737702638907,-301.45446533,0.00018999,2]
[350220605,1737702638919,-198.54553467,0.00018999,2]
[350220606,1737702638928,-500.0,0.00018999,2]
[350220607,1737702638938,-209.13525187,0.00018999,2]
[350220609,1737702640422,-136.96176863,0.00018999,2]
[350220610,1737702640432,-500.0,0.00018999,2]
[350220611,1737702640442,-500.0,0.00018999,2]
[350220612,1737702640451,-500.0,0.00018999,2]
[350220613,1737702640461,-500.0,0.00018999,2]
[350220614,1737702640470,-500.0,0.00018999,2]
[350220615,1737702640479,-500.0,0.00018999,2]
[350220616,1737702640488,-179.45657004,0.00018999,2]
[350220617,1737702640499,-325.5170224,0.00018999,2]
[350220618,1737702640509,-500.0,0.00018999,2]
[350220619,1737702640519,-500.0,0.00018999,2]
[350220620,1737702640529,-530.62992778,0.00018999,2]
[350220621,1737702640538,-500.0,0.00018999,2]
[350220622,1737702640549,-500.0,0.00018999,2]
[350220623,1737702640558,-487.49545155,0.00018999,2]
[350220624,1737702640574,-12.50454845,0.00018999,2]
[350220625,1737702640585,-500.0,0.00018999,2]
[350220626,1737702640595,-500.0,0.00018999,2]
[350220627,1737702640604,-500.0,0.00018999,2]
[350220629,1737702640613,-500.0,0.00018999,2]
[350220631,1737702640626,-514.03695074,0.00018999,2]
[350220633,1737702640636,-500.0,0.00018999,2]
[350220635,1737702640646,-388.37510472,0.00018999,2]
[350220754,1737702642928,-111.62489528,0.00018999,2]